Cogmind - Beta 15 @@@ ROGUE MODE // 2025.07.21 @ 06:52:27 Player: shapeshifter Result: Destroyed by S-10 Pest with Light Assault Rifle Performance ------------- Evolutions (1) 500 Regions Visited (4) 800 Robots Destroyed (11) 55 Value Destroyed (229) 229 Prototype IDs (0) 0 Alien Tech Used (0) 0 Bonus (0) 0 TOTAL SCORE: 1584 Bonus ------- None Cogmind --------- Core Integrity 0/400 Matter 300/300 Energy 90/100 System Corruption 2% Temperature Cool (0) Movement Flying (40) Location -9/Mines Parts ------- > --- POWER (1) -------- (None) > --- PROPULSION (2) --- Flight Unit > --- UTILITY (4) ------ (None) > --- WEAPON (2) ------- (None) > --- INVENTORY (5) ---- Light Ion Engine Small Storage Unit Huge Storage Unit Peak State ------------ > --- POWER ------------ Light Ion Engine > --- PROPULSION ------- Aluminum Leg Aluminum Leg > --- UTILITY ---------- Small Storage Unit Improved Terrain Scanner > --- WEAPON ----------- Medium Laser Light Assault Rifle > --- INVENTORY -------- Huge Storage Unit Small Laser [Rating: 9] Favorites ----------- Power Ion Engine Engine Ion Engine Propulsion Light Treads Treads Light Treads Leg Aluminum Leg Wheel Armored Wheel Flight Unit Flight Unit Utility Small Storage Unit Device Seismic Detector Storage Small Storage Unit Weapon Medium Laser Energy Gun Medium Laser Ballistic Gun Light Assault Rifle Build | -11 -10 -10 -9 -9 ------- Run | Yrd Mat Min Mat Min Slots Evolved 2 | . . . 2 . Power . | . . . . . Propulsion . | . . . . . Utility 2 | . . . 2 . Weapon . | . . . . . Parts Attached 15 | 7 5 . 2 1 Power 2 | 1 1 . . . Engine 2 | 1 1 . . . Core . | . . . . . Reactor . | . . . . . Propulsion 6 | 2 2 . 1 1 Treads 2 | 2 . . . . Leg 2 | . 2 . . . Wheel 1 | . . . 1 . Hover . | . . . . . Flight 1 | . . . . 1 Utility 3 | 2 1 . . . Device 2 | 1 1 . . . Storage 1 | 1 . . . . Processor . | . . . . . Hackware . | . . . . . Protection . | . . . . . Artifact . | . . . . . Weapon 4 | 2 1 . 1 . Energy Gun 3 | 1 1 . 1 . Energy Cannon . | . . . . . Ballistic Gun 1 | 1 . . . . Ballistic Cannon . | . . . . . Launcher . | . . . . . Special Weapon . | . . . . . Impact Weapon . | . . . . . Slashing Weapon . | . . . . . Piercing Weapon . | . . . . . Special Melee Weapon . | . . . . . Unidentified Prototypes . | . . . . . Parts Lost 12 | . 8 2 2 . Power 1 | . 1 . . . Propulsion 5 | . 3 1 1 . Utility 2 | . 2 . . . Weapon 4 | . 2 1 1 . Highest Loss Streak 8 | . 8 2 2 . To Critical Strikes . | . . . . . Average Backups 3 | 2 5 1 2 2 Power . | . . . . . Propulsion . | . 1 . . . Utility 1 | . 1 1 2 2 Weapon . | . . . . . Tool/Special . | . . . . . Unused Backups 2 | . . . 1 1 Power 1 | . . . 1 . Propulsion . | . . . . . Utility 1 | . . . . 1 Weapon . | . . . . . Tool/Special . | . . . . . Average Slot Usage (%) 42 | . 94 30 7 . Engine 5 | . 13 . . . Treads 8 | . 22 . . . Leg 2 | . 3 10 . . Device 4 | . 12 . . . Storage 6 | . 14 10 . . Energy Gun 7 | . 14 10 3 . Ballistic Gun 4 | . 12 . . . Peak Build Rating 9 | 7 9 3 4 1 Average Rating 3 | 4 6 1 1 . On Entrance 2 | . 7 4 . . Naked Turns 279 | . . 23 110 146 Heaviest Build 14 | 14 14 6 3 . Greatest Support 40 | 40 40 10 12 4 Greatest Overweight (x) . | . . . . . Average Overweight (x) . | . . . . . Largest Inventory Capacity 8 | 8 8 8 5 5 Average Capacity 6 | 7 8 6 5 5 Most Carried 6 | 6 6 2 4 3 Average Carried 3 | 2 5 1 2 2 Final Capacity 8 | 8 8 5 5 5 Final Carried 5 | 5 1 2 2 3 Class Distribution -------------------- 100% | Mutant Dominant Class ---------------- Mutant | -10/Materials Mutant | -10/Mines Mutant | -9/Materials Mutant | -9/Mines Resources | -11 -10 -10 -9 -9 ----------- Run | Yrd Mat Min Mat Min Matter Collected 319 | 273 . . 36 10 Remotely . | . . . . . Salvage Created 354 | 45 205 . 104 . Parts 28 | 7 10 . 11 . Haulers Intercepted . | . . . . . Recyclers Shooed 4 | . 3 . 1 . Parts Field Recycled . | . . . . . Retrieved Matter . | . . . . . Parts Self-Destructed . | . . . . . Prevented . | . . . . . Kills | -11 -10 -10 -9 -9 ------- Run | Yrd Mat Min Mat Min Combat Hostiles Destroyed 8 | . 3 . 5 . Guns 7 | . 3 . 4 . AOE 1 | . . . 1 . Classes Destroyed 4 | 1 2 . 1 . Tunneler 2 | 2 . . . . Recycler 1 | . 1 . . . Swarmer 4 | . . . 4 . Grunt 4 | . 3 . 1 . Best Kill Streak 5 | 2 2 . 5 . Combat Bots Only 5 | . 2 . 5 . Max Kills in Single Turn 1 | 1 1 . 1 . Gunslinging . | . . . . . Exploded 1 | . . . 1 . Melee . | . . . . . Uniques/NPCs Destroyed . | . . . . . Combat | -11 -10 -10 -9 -9 -------- Run | Yrd Mat Min Mat Min Hostile Shots Fired 210 | . 113 19 64 14 Missed 58 | . 19 7 27 5 Hits 152 | . 94 12 37 9 Projectile 152 | . 94 12 37 9 Damage Taken 1656 | . 1043 89 453 71 Core 631 | . 190 35 343 63 Absorbed by Shields . | . . . . . Core Remaining (%) 55 | 100 . 10 . . Volleys Fired 47 | 3 30 3 11 . Largest 2 | 2 2 1 1 . Hottest 90 | 70 90 40 56 . Shots Fired 77 | 6 57 3 11 . Gun 77 | 6 57 3 11 . Cannon . | . . . . . Launcher . | . . . . . Special . | . . . . . Kinetic 29 | 3 26 . . . Thermal 48 | 3 31 3 11 . Explosive . | . . . . . Electromagnetic . | . . . . . Robot Hit Streak 6 | 1 6 1 5 . Robot Miss Streak 3 | 1 3 2 1 . Penetration Max . | . . . . . Secondary Targets 1 | . 1 . . . Max Gunslinging Chain 1 | . 1 . . . Shots Hit Robots 54 | 3 41 1 9 . Core Hits 23 | 3 13 . 7 . Critical Kills . | . . . . . Critical Parts Destroyed . | . . . . . Critical Strikes 4 | . 3 . 1 . Burn 4 | . 3 . 1 . Melee Attacks . | . . . . . Impact . | . . . . . Slashing . | . . . . . Piercing . | . . . . . Sneak Attacks . | . . . . . Combat Hostiles . | . . . . . Follow-up Attacks . | . . . . . Damage Inflicted 711 | 26 455 11 219 . Guns 623 | 26 455 11 131 . Cannons . | . . . . . Explosions 69 | . . . 69 . Melee . | . . . . . Ramming 19 | . . . 19 . Kinetic 183 | 14 169 . . . Thermal 440 | 12 286 11 131 . Explosive . | . . . . . Electromagnetic 69 | . . . 69 . Impact . | . . . . . Slashing . | . . . . . Piercing . | . . . . . Highest Corruption 2 | . . . 2 2 Average Corruption 1 | . . . 1 2 Corruption Purged . | . . . . . Corruption Blocked . | . . . . . Effects 4 | . . . 2 2 Message Errors 2 | . . . . 2 Matter Fused 1 | . . . 1 . Alerts 1 | . . . 1 . Overload Shots . | . . . . . Overflow Damage 7 | . . . 7 . Projectiles . | . . . . . Explosions 7 | . . . 7 . Melee . | . . . . . Knockbacks . | . . . . . Impact . | . . . . . Kinetic . | . . . . . Secondary . | . . . . . Self-Inflicted Damage 136 | . . . 136 . Shots 4 | . . . 4 . Rammed 3 | . . . 3 . Targets Rammed 3 | . . . 3 . Kicked . | . . . . . Crushed . | . . . . . Highest Temperature 502 | 30 502 . 18 . Average Temperature 220 | 18 250 . 10 . Received Heat Transfer 609 | . 567 . 42 . Effects 8 | . 8 . . . Shutdowns 3 | . 3 . . . Energy Bleed 1 | . 1 . . . Interference 1 | . 1 . . . Short Circuit 2 | . 2 . . . Damage (major) 1 | . 1 . . . Siege Activations . | . . . . . Martial Activations . | . . . . . Shielding Activations . | . . . . . Robots Disrupted . | . . . . . Combat Hostiles . | . . . . . Robots Corrupted . | . . . . . Combat Hostiles . | . . . . . Parts Fried . | . . . . . Impact Corruptions . | . . . . . Robots Melted . | . . . . . Combat Hostiles . | . . . . . Parts Melted 1 | . 1 . . . Heat Transferred 1518 | 37 1049 25 407 . Parts Sabotaged . | . . . . . Parts Stolen . | . . . . . Parts Stripped . | . . . . . Power Chain Reactions 2 | . . . 2 . Alert | -11 -10 -10 -9 -9 ------- Run | Yrd Mat Min Mat Min Maximum Alert Level . | . . . . . Low Security (%) 100 | 100 100 100 100 100 Level 1 . | . . . . . Level 2 . | . . . . . Level 3 . | . . . . . Level 4 . | . . . . . Level 5 . | . . . . . High Security . | . . . . . Max Security . | . . . . . Peak Influence 138 | 5 40 60 138 37 Initial 37 | . . . 19 37 Average 19 | . 7 9 61 11 Influence Increases 313 | 10 75 60 168 . Destroy 0b10 Robot/C 160 | . 60 . 100 . Destroy 0b10 Robot/NC 15 | 10 5 . . . Destroy Leader 30 | . 10 . 20 . Successful Hack 14 | . . . 14 . Disable Machine 30 | . . . 30 . Destroy Structure 4 | . . . 4 . Lose Combat Pursuer 60 | . . 60 . . Influence Decreases 313 | 10 75 10 120 98 Entered New Map 92 | . . . 31 61 Time Decay 166 | 10 40 10 69 37 Lost Part 55 | . 35 . 20 . Squads Dispatched 4 | . 2 . 2 . Investigation 2 | . 1 . 1 . Extermination . | . . . . . Reinforcement 2 | . 1 . 1 . Assault . | . . . . . Garrison . | . . . . . Intercept . | . . . . . Searches Triggered . | . . . . . Construction Impeded . | . . . . . Haulers Reinforced . | . . . . . Active Scanning Responses . | . . . . . Cargo Convoy Interrupts . | . . . . . Stealth | -11 -10 -10 -9 -9 --------- Run | Yrd Mat Min Mat Min Distress Signals 3 | . . . 3 . Communications Jammed . | . . . . . Distress Signals . | . . . . . Times Spotted 41 | . 10 6 21 4 Peak Tracking Total 13 | . 8 3 13 4 Tactical Retreats 1 | . . 1 . . Traps | -11 -10 -10 -9 -9 ------- Run | Yrd Mat Min Mat Min Traps Triggered . | . . . . . Indirectly . | . . . . . Trap Hack Attempts . | . . . . . Triggered . | . . . . . Disarmed . | . . . . . Reprogrammed . | . . . . . Reused . | . . . . . Traps Extracted . | . . . . . Installed . | . . . . . Triggered . | . . . . . Machines | -11 -10 -10 -9 -9 ---------- Run | Yrd Mat Min Mat Min Machines Disabled 2 | . . . 2 . Max in Single Turn 2 | . . . 2 . Machines Repaired . | . . . . . Machines Dismantled . | . . . . . Machines Sabotaged . | . . . . . Overloaded Fab Kills . | . . . . . Hacking | -11 -10 -10 -9 -9 --------- Run | Yrd Mat Min Mat Min Machines Accessed 5 | . 2 . 3 . Terminals 4 | . 2 . 2 . Fabricators . | . . . . . Repair Stations . | . . . . . Recycling Units 1 | . . . 1 . Scanalyzers . | . . . . . Garrison Access . | . . . . . Total Hacks 12 | . 5 . 7 . Successful 5 | . 1 . 4 . Failed 7 | . 4 . 3 . Catastrophic 1 | . . . 1 . Database Lockouts . | . . . . . Manual 2 | . 1 . 1 . Terminals 8 | . 5 . 3 . Fabricators . | . . . . . Repair Stations . | . . . . . Recycling Units 4 | . . . 4 . Scanalyzers . | . . . . . Garrison Access . | . . . . . Terminal Hacks 2 | . . . 2 . Alert Level 1 | . . . 1 . Hauler Manifests 1 | . . . 1 . Fabricator Hacks . | . . . . . Repair Station Hacks . | . . . . . Recycling Unit Hacks 1 | . . . 1 . Retrieve Components 1 | . . . 1 . Scanalyzer . | . . . . . Garrison Access Hacks . | . . . . . Unauthorized Hacks 2 | . 1 . 1 . Terminals 2 | . 1 . 1 . Botnet 2 | . 1 . 1 . Fabricators . | . . . . . Repair Stations . | . . . . . Recycling Units . | . . . . . Scanalyzers . | . . . . . Garrison Access . | . . . . . Data Cores Recovered . | . . . . . Used . | . . . . . Hacking Detections 3 | . 2 . 1 . Full Trace Events 2 | . 1 . 1 . Feedback Events . | . . . . . Feedback Blocked . | . . . . . Robot Schematics Acquired . | . . . . . Robots Built . | . . . . . Authchips . | . . . . . Time . | . . . . . Total Robot Build Rating . | . . . . . Part Schematics Acquired . | . . . . . Parts Built . | . . . . . Authchips . | . . . . . Time . | . . . . . Total Part Build Rating . | . . . . . Parts Repaired . | . . . . . Time . | . . . . . Parts Recycled . | . . . . . Recycled Matter . | . . . . . Retrieved Matter . | . . . . . Retrieved Components 1 | . . . 1 . Parts Scanalyzed . | . . . . . Part Schematics Acquired . | . . . . . Parts Damaged . | . . . . . Bothacking | -11 -10 -10 -9 -9 ------------ Run | Yrd Mat Min Mat Min Used RIF Installer . | . . . . . Robots Hacked . | . . . . . Non-combat . | . . . . . Combat . | . . . . . Robot Hacks Applied . | . . . . . Relay Couplers Released . | . . . . . Fabnet Peak Effective % . | . . . . . Robots Rewired . | . . . . . Allies Hacked . | . . . . . Hacks Repelled . | . . . . . Allies | -11 -10 -10 -9 -9 -------- Run | Yrd Mat Min Mat Min Total Allies . | . . . . . Largest Group . | . . . . . Highest-Rated Group . | . . . . . Highest-Rated Ally . | . . . . . Total Orders . | . . . . . Ally Attacks . | . . . . . Total Damage . | . . . . . Kills . | . . . . . Allies Corrupted . | . . . . . Allies Melted . | . . . . . Intel | -11 -10 -10 -9 -9 ------- Run | Yrd Mat Min Mat Min Active Infowar (turns) 254 | 15 239 . . . Terrain 23 | . 23 . . . Seismic 231 | 15 216 . . . Robot Analysis Total . | . . . . . Derelict Logs Recovered 2 | . . 1 . 1 Drone Launches . | . . . . . Drone Recoveries . | . . . . . Exploration | -11 -10 -10 -9 -9 ------------- Run | Yrd Mat Min Mat Min Turns Passed 761 | 111 262 65 175 148 Spaces Moved 590 | 58 114 73 208 137 Core 348 | 7 . 44 162 135 Treads 146 | 51 95 . . . Legs 48 | . 19 29 . . Wheels 46 | . . . 46 . Hover . | . . . . . Flight 2 | . . . . 2 Fastest Speed 40 | 50 120 50 50 40 Average Speed 86 | 146 153 77 58 49 Slowest Speed 160 | 160 160 120 90 50 Overloaded Moves . | . . . . . Propulsion Burnouts . | . . . . . Robots Hopped . | . . . . . Potential Cave-ins . | . . . . . Cave-ins Triggered . | . . . . . Exploration Rate (%) 30 | 4 35 30 34 48 Regions Visited 4 Branch Regions 2 Pre-discovered Areas . | . . . . . Known Exits Taken . | . . . . . Unknown Exits Taken 4 | 1 1 1 1 . Scrap Searched . | . . . . . Spaces Dug . | . . . . . Terrain Destroyed 3 | . . . 3 . Melee . | . . . . . Projectile . | . . . . . AOE 3 | . . . 3 . Terrain Rammed . | . . . . . Walls Destroyed . | . . . . . Machines Disabled . | . . . . . Actions | -11 -10 -10 -9 -9 --------- Run | Yrd Mat Min Mat Min Total 772 | 79 149 78 249 217 Wait 99 | . . . 22 77 Move 586 | 57 113 72 207 137 Hop . | . . . . . Pick Up 19 | 12 1 1 3 2 Fast Attach . | . . . . . Attach 15 | 7 5 . 2 1 Detach . | . . . . . Swap . | . . . . . Drop 3 | . . 2 1 . Fire 47 | 3 30 3 11 . Melee . | . . . . . Ram 3 | . . . 3 . Kick . | . . . . . Crush . | . . . . . Escape Stasis . | . . . . . Rewire . | . . . . . Trap . | . . . . . Miscellaneous . | . . . . . Route ------- -11/Scrapyard -10/Materials -10/Mines -9/Materials -9/Mines History --------- Turn | Location | Event 3 | -11/Scrapyard | Discovered new exit (range 15) 112 | -11/Scrapyard | Entered Materials 308 | -10/Materials | Build established: Mutant 356 | -10/Materials | Core integrity fell below 50% 362 | -10/Materials | Discovered new exit (range 9) 374 | -10/Materials | Entered Mines 399 | -10/Mines | Lost 8 parts (1p3n2u2w) 399 | -10/Mines | Learned Materials emergency access door positions 417 | -10/Mines | Core integrity fell below 20% 433 | -10/Mines | Discovered new exit (range 11) 439 | -10/Mines | Entered Materials 439 | -9/Materials | Evolved 2 slots: Utility x2 569 | -9/Materials | Core integrity fell below 50% 611 | -9/Materials | Discovered new exit (range 5) 613 | -9/Materials | Core integrity fell below 20% 614 | -9/Materials | Entered Mines 656 | -9/Mines | Learned 2 Materials zone layouts 762 | -9/Mines | Destroyed by S-10 Pest with Light Assault Rifle Last Messages --------------- 00662_ T-07 Excavator is excavating. 00694_ =< 00711_ U28/7I0P&N9B2UWWI#/W3P 00713_ T-07 Excavator is excavating. 00724_ U-05 Engineer lays Concrete. 00726_ T-07 Excavator is excavating. 00726_ U-05 Engineer lays Concrete. 00728_ U-05 Engineer builds a Wall. 00730_ T-07 Excavator is excavating. 00732_ U-05 Engineer lays Concrete. 00734_ T-07 Excavator is excavating. 00734_ U-05 Engineer builds a Wall. 00754_ U-05 Engineer builds a Door. 00758_ S-10 Pest destroyed. 00759_ Acquired Flight Unit. 00759_ U-05 Engineer lays Concrete. 00761_ Acquired 10 matter. 00761_ U-05 Engineer lays Concrete. 00762_ Acquired Lgt. Ion Engine. Map ----- +----------------------------------------------------+ | ??????????????????????????????????? | | ??????????????????????????????????? | | ??????????????????????????????????? | | ??????????????????????????????????? | | ??????????????????????????????????? | | ??????????????????????????????????? | | ??????????????????????????????????? | | ??????????????????????????????????? | | ??????????????????????????????????? | | ??????????????????????????????????? | | ??????????????????????????????????? | | ??????????????????????????????????? | | ??????????????????????????????????? | | ????????## ######### #??????????? | | ????????# #??????????? | | ???????# ## #######??????????? | | ??????# ?????# #????????????????? | | ???????????????# #????????###?????? | | ???????????????# #???????## ##????? | | ???????????????# #???????# #???? | | ??????###????### #???????# #### ? | | ?????## ####?# #???????# ?? | | ?????# ### ###???????# ??? | | ?????# s s #?????????# ##??? | | ?????# u %s #???????### ##?? | | ?????# @### #??????## #?? | | ?????#######?# #?????## #?? | | ?????????????# #?????# ##?? | | ?????????????# #?????# ##??? | | ?????????????# #????## ##???? | | ?????????????# #???## ##????? | | ????########## ##### ##?????? | | ????# #???###? | | ????# ##### ## | | ????# ########### ##### # | | ?????????????????## #??# # | | ??????????????????# ##?# #? | | ??????????????????# ### #?? | | ??????????????????## #??? | | ???????????????????## #??? | | ????????????????????# #??? | | ????????????????????## #??? | | ?????????????????????# #??? | | ????????????????????## #??? | | ???????????????????## ##?? | | ???????????????????# ### | | ??????????????????# | | ??????????????????# ### | | ??????????????????## ##?## | | ???????????????????## #???# | +----------------------------------------------------+ Best States ------------- Heat Dissipation 28 Energy Generation 10 Energy Capacity 250 Matter Stores 300 Matter Capacity 300 Sight Range 16 Terrain Scan Range 16 Terrain Scan Density 10 Evasion (%) 55 Recoil Reduction 2 Item Schematics ----------------- None Robot Schematics ------------------ None Fabricated ------------ Nothing Repaired ---------- Nothing Alien Tech Used ----------------- None Achievements -------------- None Challenges ------------ None Game ------ Seed CombatProcessingFlakker Manual? 0 Play Time 00:07:47 Cumulative 26.6 hours Start 2025.07.21 @ 06:45:04 End 2025.07.21 @ 06:52:27 Sessions 1 Manual Loads 0 Difficulty Rogue Special Mode None Game No. 71 Rogue 71 Adventurer 0 Explorer 0 Win Type - Total 0 Types 0/0/0/0/0/0/0/0/0/0 Lore% 24 Gallery% 28 Achievement% 21 Wizard Run 0 Options --------- Layout 1 ASCII 0 Keyboard 0 Movement Mouse Keybinds 0 Fullscreen 1 Font 32/SmallcapsGlow Map View 50x35 Zoom Use 0% Tactical HUD 1 Map Filters NONE Filters NONE Steam 1 RUN: 772fa724-6cc1-4a95-bd67-a356735a3dd5